fUST/lending_fUST_20250602
["ID","MTS","AMOUNT","RATE_DAILY","PERIOD"]
[363797348,1748874649927,-179.26119841,0.00020747,2]
[363797349,1748874649934,-151.0,0.00020789,2]
[363797350,1748874649941,-151.0,0.00020789,2]
[363797351,1748874649949,-801.42729175,0.00020797,4]
[363797352,1748874649959,-944.89,0.00020882,2]
[363797353,1748874649969,-273.0,0.000209,2]
[363797354,1748874649979,-28262.42053452,0.00020917,2]
[363797355,1748874649990,-282.87,0.00020936,2]
[363797356,1748874650001,-604.54,0.00020936,2]
[363797357,1748874650012,-430.0,0.00020936,2]
[363797358,1748874650025,-462.42,0.00020936,2]
[363797359,1748874650036,-1896.35,0.00020936,2]
[363797360,1748874650047,-430.0,0.00020937,2]
[363797361,1748874650059,-520.78,0.00020938,2]
[363797362,1748874650069,-430.0,0.00020938,2]
[363797363,1748874650080,-430.0,0.00020938,2]
[363797364,1748874650090,-555.17,0.00020938,2]
[363797365,1748874650100,-724.26,0.0002094,2]
[363797366,1748874650112,-678.76,0.0002094,2]
[363797367,1748874650121,-559.41,0.0002094,2]
[363797368,1748874650131,-1184.71,0.0002094,2]
[363797369,1748874650142,-430.0,0.00020941,2]
[363797370,1748874650152,-7191.58078867,0.00021,2]
[363797371,1748874650162,-801.42729175,0.00021003,4]
[363797372,1748874650173,-1000.0,0.00021048,2]
[363797373,1748874650183,-1000.0,0.00021079,2]
[363797374,1748874650192,-500.0,0.00021095,3]
[363797375,1748874650203,-2226.0,0.00021114,2]
[363797376,1748874650212,-708.0,0.00021114,2]
[363797377,1748874650223,-405.0,0.00021114,2]
[363797378,1748874650233,-962.0,0.00021114,2]
[363797379,1748874650244,-2400.0,0.00021136,2]
[363797380,1748874650254,-604.54,0.0002121,2]
[363797381,1748874650265,-548.57,0.0002121,2]
[363797382,1748874650275,-462.42,0.0002121,2]
[363797383,1748874650285,-1896.35,0.0002121,2]
[363797384,1748874650295,-801.42729175,0.0002121,4]
[363797385,1748874650306,-430.0,0.00021211,2]
[363797386,1748874650315,-520.78,0.00021212,2]
[363797387,1748874650325,-405.84387592,0.00021212,2]
[363797388,1748874650335,-430.0,0.00021212,2]
[363797389,1748874650346,-555.17,0.00021212,2]
[363797390,1748874650356,-724.26,0.00021213,2]
[363797391,1748874650507,-678.76,0.00021213,2]
[363797392,1748874650518,-559.41,0.00021213,2]
[363797393,1748874650529,-1184.71,0.00021213,2]
[363797394,1748874650539,-430.0,0.00021215,2]
[363797395,1748874650549,-1000.0,0.00021225,2]
[363797396,1748874650559,-215.0738,0.00021342,2]
[363797397,1748874650569,-801.42729175,0.00021417,5]
[363797398,1748874650580,-604.54,0.00021484,2]
[363797399,1748874650590,-462.42,0.00021484,2]
[363797400,1748874650600,-1896.35,0.00021484,2]
[363797401,1748874650612,-430.0,0.00021485,2]
[363797402,1748874650621,-520.78,0.00021486,2]
[363797403,1748874650632,-351.18017293,0.00021486,2]
[363797404,1748874650642,-555.17,0.00021486,2]
[363797405,1748874650652,-724.26,0.00021487,2]
[363797406,1748874650662,-678.76,0.00021487,2]
[363797407,1748874650672,-559.41,0.00021487,2]
[363797408,1748874650683,-1184.71,0.00021487,2]
[363797409,1748874650693,-305.11168778,0.00021489,2]
[363797410,1748874650703,-16335.0,0.000215,2]
[363797411,1748874650713,-250.0,0.00021524,2]
[363797412,1748874650723,-823.0,0.00021595,2]
[363797413,1748874650735,-1500.0,0.00021596,2]
[363797414,1748874650745,-162.411301,0.000216,2]
[363797415,1748874650755,-801.42729175,0.00021624,5]
[363797416,1748874650765,-1500.0,0.00021627,2]
[363797417,1748874650775,-500.0,0.00021643,4]
[363797418,1748874650785,-3000.0,0.00021684,2]
[363797419,1748874650795,-45404.42,0.000217,2]
[363797420,1748874650805,-8785.80297612,0.000217,2]
[363797421,1748874650815,-604.54,0.00021758,2]
[363797422,1748874650826,-462.42,0.00021758,2]
[363797423,1748874650836,-1896.35,0.00021758,2]
[363797424,1748874650846,-430.0,0.00021759,2]
[363797425,1748874650856,-520.78,0.0002176,2]
[363797426,1748874650865,-555.17,0.0002176,2]
[363797427,1748874650876,-724.26,0.00021761,2]
[363797428,1748874650886,-678.76,0.00021761,2]
[363797429,1748874650896,-559.41,0.00021761,2]
[363797430,1748874650906,-1184.71,0.00021761,2]
[363797431,1748874650916,-154.617799,0.00021769,2]
[363797432,1748874650926,-151.0,0.00021769,2]
[363797433,1748874650936,-21999.99887501,0.0002181,7]
[363797434,1748874650946,-801.42729175,0.00021831,6]
[363797435,1748874650956,-1605.98,0.000219,2]
[363797436,1748874650966,-212.83419937,0.000219,7]
[363797437,1748874650975,-500.0,0.00021917,2]
[363797438,1748874650986,-150.0,0.00021918,2]
[363797439,1748874650996,-39151.83209431,0.00021998,2]
[363797440,1748874651006,-2173.37,0.00022,2]
[363797441,1748874651017,-604.54,0.00022032,2]
[363797442,1748874651030,-462.42,0.00022032,2]
[363797443,1748874651040,-1896.35,0.00022032,2]
[363797444,1748874651050,-430.0,0.00022033,2]
[363797445,1748874651060,-520.78,0.00022034,2]
[363797446,1748874651070,-555.17,0.00022034,2]
[363797447,1748874651080,-724.26,0.00022035,2]
[363797448,1748874651089,-678.76,0.00022035,2]
[363797449,1748874651101,-559.41,0.00022035,2]
[363797450,1748874651111,-1184.71,0.00022035,2]
[363797451,1748874651120,-801.42729175,0.00022038,6]
[363797452,1748874651130,-236.62709331,0.00022042,2]
[363797453,1748874651140,-39505.61071956,0.000221,7]
[363797454,1748874651253,-876.09,0.00018746,2]
[363797455,1748874651263,-3117.44880411,0.000221,7]
[363797456,1748874651389,-430.0,0.00016555,2]
[363797457,1748874651399,-876.09,0.0001902,2]
[363797458,1748874651409,-876.09,0.00019293,2]
[363797459,1748874651419,-876.09,0.00019567,2]
[363797460,1748874651430,-876.09,0.00019841,2]
[363797461,1748874651439,-876.09,0.00020115,2]
[363797462,1748874651449,-876.09,0.00020389,2]
[363797463,1748874651458,-876.09,0.00020663,2]
[363797464,1748874651468,-40803.16047633,0.000221,7]
[363797465,1748874651479,-2000.0,0.00022144,2]
[363797466,1748874651489,-2000.0,0.00022175,2]
[363797467,1748874651498,-500.0,0.00022191,5]
[363797468,1748874651508,-3600.0,0.00022232,2]
[363797469,1748874651518,-801.42729175,0.00022245,6]
[363797470,1748874651528,-153.0,0.00022247,2]
[363797471,1748874651538,-351.996922,0.00022247,2]
[363797472,1748874651548,-158.5152029,0.00022247,2]
[363797473,1748874651557,-935.0860655,0.00022247,2]
[363797474,1748874651568,-153.0,0.00022247,2]
[363797475,1748874651578,-158.5152029,0.00022247,2]
[363797476,1748874651587,-7133.82,0.000223,2]
[363797477,1748874651597,-273.0,0.000223,2]
[363797478,1748874651609,-604.54,0.00022306,2]
[363797479,1748874651620,-462.42,0.00022306,2]
[363797480,1748874651630,-1896.35,0.00022306,2]
[363797481,1748874651641,-152.64,0.00022307,2]
[363797482,1748874651651,-520.78,0.00022308,2]
[363797483,1748874651661,-555.17,0.00022308,2]
[363797484,1748874651671,-724.26,0.00022309,2]
[363797485,1748874651681,-678.76,0.00022309,2]
[363797486,1748874651691,-559.41,0.00022309,2]
[363797487,1748874651701,-1184.71,0.00022309,2]
[363797488,1748874651711,-1000.0,0.00022321,2]
[363797489,1748874651721,-685.22,0.000224,7]
[363797490,1748874651732,-2200.0,0.00022419,2]
[363797491,1748874651744,-801.42729175,0.00022452,7]
[363797492,1748874651754,-500.0,0.00022465,2]
[363797493,1748874651763,-604.54,0.0002258,2]
[363797494,1748874651773,-462.42,0.0002258,2]
[363797495,1748874651783,-1896.35,0.0002258,2]
[363797496,1748874651793,-520.78,0.00022582,2]
[363797497,1748874651804,-555.17,0.00022582,2]
[363797498,1748874651814,-724.26,0.00022583,2]
[363797499,1748874651823,-678.76,0.00022583,2]
[363797500,1748874651834,-559.41,0.00022583,2]
[363797501,1748874651845,-1184.71,0.00022583,2]
[363797502,1748874651855,-151.0,0.000226,7]
[363797503,1748874651864,-305.805002,0.00022603,2]
[363797504,1748874651879,-129.9407015,0.00022659,7]
[363797505,1748874651979,-537.19750032,0.00020937,2]
[363797506,1748874652149,-5000.0,0.00016391,2]
[363797507,1748874652159,-430.0,0.00016553,2]
[363797508,1748874652169,-430.0,0.00016553,2]
[363797509,1748874652178,-500.0,0.00020599,2]
[363797510,1748874652188,-400.0,0.00020599,2]
[363797511,1748874652197,-338.89249968,0.00020937,2]
[363797512,1748874652206,-876.09,0.00021211,2]
[363797513,1748874652216,-769.84750032,0.00021485,2]
[363797514,1748874652228,-106.24249968,0.00021485,2]
[363797515,1748874652239,-367.67205291,0.00021759,2]
[363797516,1748874652523,-430.0,0.00021759,2]
[363797534,1748874847828,339.086965,0.00013699,2]
[363797542,1748875162892,464.9152884,0.00015553,2]
[363797543,1748875162918,84.7492134,0.00015553,2]
[363797549,1748875296083,490.0,0.00024657,120]
[363797551,1748875313323,241.8394204,0.00015551,2]
[363797560,1748875415788,5000.0,0.00016,2]
[363797564,1748875445894,157.45269462,6.8e-07,2]
[363797565,1748875446113,157.45269462,6.8e-07,2]
[363797570,1748875619910,1369.66497696,0.00016,2]
[363797571,1748875619933,3630.33502304,0.00016,2]
[363797579,1748875664666,584.2254775,0.0001555,2]
[363797581,1748875741656,6000.0,0.00024658,120]
[363797586,1748875812856,339.83274,0.00013699,2]
[363797589,1748875822627,2456.76575946,0.00016,2]
[363797590,1748875822650,2543.23424054,0.00016,2]
[363797668,1748875832340,-416.68985104,0.00016453,2]
[363797670,1748875832350,-1200.0,0.00016547,2]
[363797672,1748875832360,-300.0,0.00016548,2]
[363797674,1748875832370,-300.0,0.00016548,2]
[363797676,1748875832379,-300.0,0.00016548,2]
[363797678,1748875832390,-430.0,0.00016549,2]
[363797680,1748875832404,-430.0,0.00016549,2]
[363797682,1748875832413,-430.0,0.00016549,2]
[363797684,1748875832423,-430.0,0.00016549,2]
[363797686,1748875832433,-430.0,0.00016549,2]
[363797689,1748875832442,-430.0,0.00016549,2]
[363797690,1748875832452,-804.94,0.00016549,2]
[363797692,1748875832462,-430.0,0.00016549,2]
[363797695,1748875832474,-1248.91,0.00016549,2]
[363797696,1748875832484,-430.51474605,0.00016549,2]
[363797698,1748875832493,-366.43399899,0.00016549,2]
[363797700,1748875832503,-430.0,0.00016549,2]
[363797702,1748875832512,-430.0,0.00016549,2]
[363797704,1748875832521,-281.63550722,0.00016549,2]
[363797706,1748875832531,-430.0,0.00016549,2]
[363797708,1748875832540,-430.0,0.00016549,2]
[363797710,1748875832550,-430.0,0.00016549,2]
[363797712,1748875832559,-430.0,0.00016549,2]
[363797714,1748875832569,-430.0,0.00016549,2]
[363797716,1748875832579,-495.03727033,0.00016549,2]
[363797718,1748875832589,-430.0,0.00016549,2]
[363797720,1748875832599,-430.0,0.00016549,2]
[363797722,1748875832608,-430.0,0.00016549,2]
[363797724,1748875832617,-430.0,0.00016549,2]
[363797726,1748875832627,-1900.15,0.00016549,2]
[363797728,1748875832636,-430.0,0.00016549,2]
[363797730,1748875832646,-204.04723304,0.00016549,2]
[363797732,1748875832656,-2597.69,0.00016549,2]
[363797733,1748875832666,-430.0,0.00016549,2]
[363797736,1748875832676,-257.9694482,0.00016549,2]
[363797738,1748875832685,-500.0,0.00016549,2]
[363797740,1748875832694,-159.89923901,0.00016549,2]
[363797742,1748875832703,-500.0,0.00016549,2]
[363797743,1748875832712,-500.0,0.00016549,2]
[363797745,1748875832723,-500.0,0.00016549,2]
[363797747,1748875832733,-559.30993898,0.00016549,2]
[363797749,1748875832742,-500.0,0.00016549,2]
[363797751,1748875832751,-500.0,0.00016549,2]
[363797753,1748875832760,-500.0,0.00016549,2]
[363797755,1748875832770,-500.0,0.00016549,2]
[363797757,1748875832779,-500.0,0.00016549,2]
[363797759,1748875832789,-500.0,0.00016549,2]
[363797761,1748875832798,-500.0,0.00016549,2]
[363797763,1748875832808,-500.0,0.00016549,2]
[363797765,1748875832818,-500.0,0.00016549,2]
[363797767,1748875832828,-500.0,0.00016549,2]
[363797769,1748875832838,-500.0,0.00016549,2]
[363797771,1748875832848,-295.11322446,0.00016549,2]
[363797773,1748875832858,-318.75,0.0001655,2]
[363797775,1748875832868,-448.2075502,0.0001655,2]
[363797777,1748875832877,-430.0,0.0001655,2]
[363797779,1748875832887,-430.0,0.0001655,2]
[363797781,1748875832896,-430.0,0.0001655,2]
[363797782,1748875832906,-430.0,0.0001655,2]
[363797784,1748875832915,-398.87073197,0.0001655,2]
[363797785,1748875832924,-430.0,0.0001655,2]
[363797787,1748875832934,-432.9224785,0.0001655,2]
[363797789,1748875832944,-430.0,0.0001655,2]
[363797791,1748875832953,-432.29371893,0.0001655,2]
[363797794,1748875832966,-430.0,0.0001655,2]
[363797796,1748875832978,-434.43049342,0.0001655,2]
[363797798,1748875832988,-638.72,0.0001655,2]
[363797800,1748875832997,-250.48194179,0.0001655,2]
[363797801,1748875833007,-430.0,0.0001655,2]
[363797803,1748875833017,-505.84164683,0.0001655,2]
[363797805,1748875833027,-529.36316137,0.0001655,2]
[363797807,1748875833037,-2908.69,0.0001655,2]
[363797809,1748875833047,-430.0,0.0001655,2]
[363797811,1748875833058,-430.0,0.0001655,2]
[363797814,1748875833070,-430.0,0.0001655,2]
[363797816,1748875833080,-301.60213888,0.0001655,2]
[363797817,1748875833090,-430.0,0.0001655,2]
[363797820,1748875833099,-430.0,0.0001655,2]
[363797821,1748875833109,-430.0,0.0001655,2]
[363797823,1748875833119,-430.0,0.0001655,2]
[363797825,1748875833128,-430.0,0.0001655,2]
[363797827,1748875833140,-430.0,0.0001655,2]
[363797829,1748875833150,-271.46909793,0.0001655,2]
[363797831,1748875833161,-430.0,0.0001655,2]
[363797833,1748875833171,-430.0,0.0001655,2]
[363797835,1748875833181,-430.0,0.0001655,2]
[363797837,1748875833192,-354.52777691,0.0001655,2]
[363797839,1748875833202,-430.0,0.0001655,2]
[363797841,1748875833213,-430.0,0.0001655,2]
[363797843,1748875833225,-430.0,0.0001655,2]
[363797845,1748875833234,-430.0,0.0001655,2]
[363797847,1748875833245,-430.0,0.0001655,2]
[363797849,1748875833256,-224.57270511,0.0001655,2]
[363797851,1748875833266,-564.62379007,0.0001655,2]
[363797853,1748875833277,-430.0,0.0001655,2]
[363797855,1748875833286,-497.83,0.0001655,2]
[363797857,1748875833297,-430.0,0.0001655,2]
[363797859,1748875833308,-1048.09,0.0001655,2]
[363797861,1748875833318,-430.0,0.0001655,2]
[363797863,1748875833328,-430.0,0.0001655,2]
[363797865,1748875833338,-400.0,0.0001655,2]
[363797867,1748875833348,-430.0,0.0001655,2]
[363797869,1748875833359,-430.0,0.0001655,2]
[363797871,1748875833369,-430.0,0.0001655,2]
[363797873,1748875833379,-430.0,0.0001655,2]
[363797875,1748875833392,-430.0,0.0001655,2]
[363797877,1748875833404,-403.25999873,0.0001655,2]
[363797879,1748875833414,-430.0,0.0001655,2]
[363797881,1748875833426,-430.0,0.0001655,2]
[363797883,1748875833438,-430.0,0.0001655,2]
[363797885,1748875833448,-673.12,0.0001655,2]
[363797886,1748875833459,-430.0,0.0001655,2]
[363797888,1748875833472,-430.0,0.0001655,2]
[363797890,1748875833483,-430.0,0.0001655,2]
[363797892,1748875833493,-430.0,0.0001655,2]
[363797894,1748875833504,-430.0,0.0001655,2]
[363797897,1748875833514,-430.0,0.0001655,2]
[363797898,1748875833524,-430.0,0.0001655,2]
[363797901,1748875833535,-430.0,0.0001655,2]
[363797902,1748875833546,-430.0,0.0001655,2]
[363797904,1748875833557,-430.0,0.0001655,2]
[363797906,1748875833568,-430.0,0.0001655,2]
[363797909,1748875833579,-383.8502655,0.0001655,2]
[363797910,1748875833588,-430.0,0.0001655,2]
[363797912,1748875833597,-430.0,0.0001655,2]
[363797914,1748875833606,-430.0,0.0001655,2]
[363797916,1748875833615,-430.0,0.0001655,2]
[363797918,1748875833625,-430.0,0.0001655,2]
[363797920,1748875833634,-430.0,0.0001655,2]
[363797922,1748875833643,-430.0,0.0001655,2]
[363797924,1748875833653,-430.0,0.0001655,2]
[363797926,1748875833663,-430.0,0.0001655,2]
[363797928,1748875833674,-430.0,0.0001655,2]
[363797930,1748875833685,-430.0,0.0001655,2]
[363797932,1748875833696,-430.0,0.0001655,2]
[363797934,1748875833706,-430.0,0.0001655,2]
[363797936,1748875833717,-400.0,0.0001655,2]
[363797938,1748875833731,-430.0,0.0001655,2]
[363797940,1748875833741,-430.0,0.0001655,2]
[363797942,1748875833750,-521.95540922,0.0001655,2]
[363797944,1748875833760,-430.0,0.0001655,2]
[363797946,1748875833770,-430.0,0.0001655,2]
[363797948,1748875833780,-393.27296898,0.0001655,2]
[363797950,1748875833790,-420.0,0.0001655,2]
[363797952,1748875833800,-430.0,0.0001655,2]
[363797954,1748875833810,-430.0,0.0001655,2]
[363797956,1748875833821,-430.0,0.0001655,2]
[363797958,1748875833831,-430.0,0.0001655,2]
[363797960,1748875833841,-430.0,0.0001655,2]
[363797962,1748875833850,-178.58655484,0.0001655,2]
[363797964,1748875833860,-564.67,0.0001655,2]
[363797966,1748875833870,-430.0,0.0001655,2]
[363797968,1748875833880,-430.0,0.0001655,2]
[363797970,1748875833890,-405.80632735,0.0001655,2]
[363797972,1748875833900,-430.0,0.0001655,2]
[363797974,1748875833911,-228.0547291,0.0001655,2]
[363797976,1748875833921,-851.01,0.0001655,2]
[363797978,1748875833932,-400.0,0.0001655,2]
[363797980,1748875833942,-430.0,0.0001655,2]
[363797982,1748875833953,-430.0,0.0001655,2]
[363797983,1748875833963,-430.0,0.0001655,2]
[363797984,1748875833975,-375.24844841,0.0001655,2]
[363797985,1748875833986,-430.0,0.0001655,2]
[363797986,1748875833996,-430.0,0.0001655,2]
[363797987,1748875834006,-430.0,0.0001655,2]
[363797988,1748875834017,-430.0,0.0001655,2]
[363797989,1748875834027,-430.0,0.0001655,2]
[363797990,1748875834037,-277.36376202,0.0001655,2]
[363797991,1748875834048,-430.0,0.0001655,2]
[363797992,1748875834059,-430.0,0.0001655,2]
[363797993,1748875834070,-324.46209184,0.0001655,2]
[363797994,1748875834080,-430.0,0.0001655,2]
[363797995,1748875834090,-403.22178623,0.0001655,2]
[363797996,1748875834100,-314.78387305,0.0001655,2]
[363797997,1748875834110,-301.68828176,0.0001655,2]
[363797998,1748875834120,-430.0,0.0001655,2]
[363797999,1748875834130,-430.0,0.00016551,2]
[363798000,1748875834141,-430.0,0.00016551,2]
[363798001,1748875834150,-322.46745027,0.00016551,2]
[363798002,1748875834161,-430.0,0.00016551,2]
[363798003,1748875834172,-430.0,0.00016551,2]
[363798004,1748875834183,-430.0,0.00016551,2]
[363798005,1748875834193,-430.0,0.00016551,2]
[363798024,1748875834203,-430.0,0.00016551,2]
[363798026,1748875834434,-430.0,0.00016551,2]
[363798028,1748875834445,-430.0,0.00016551,2]
[363798030,1748875834455,-430.0,0.00016551,2]
[363798032,1748875834465,-430.0,0.00016551,2]
[363798034,1748875834480,-469.58,0.00016551,2]
[363798036,1748875834491,-430.0,0.00016551,2]
[363798038,1748875834501,-430.0,0.00016551,2]
[363798040,1748875834512,-430.0,0.00016551,2]
[363798042,1748875834522,-458.12,0.00016551,2]
[363798045,1748875834532,-430.0,0.00016551,2]
[363798046,1748875834541,-430.0,0.00016551,2]
[363798048,1748875834551,-430.0,0.00016551,2]
[363798051,1748875834562,-550.95604686,0.00016551,2]
[363798053,1748875834572,-430.0,0.00016551,2]
[363798055,1748875834581,-430.0,0.00016551,2]
[363798057,1748875834591,-430.0,0.00016551,2]
[363798059,1748875834601,-430.0,0.00016551,2]
[363798060,1748875834611,-430.0,0.00016551,2]
[363798063,1748875834621,-430.0,0.00016551,2]
[363798065,1748875834631,-430.0,0.00016551,2]
[363798067,1748875834641,-500.0,0.00016551,2]
[363798069,1748875834651,-430.0,0.00016551,2]
[363798071,1748875834660,-430.0,0.00016551,2]
[363798073,1748875834671,-430.0,0.00016551,2]
[363798075,1748875834680,-430.0,0.00016551,2]
[363798077,1748875834689,-430.0,0.00016551,2]
[363798079,1748875834699,-430.0,0.00016551,2]
[363798080,1748875834708,-430.0,0.00016551,2]
[363798083,1748875834718,-430.0,0.00016551,2]
[363798085,1748875834732,-430.0,0.00016551,2]
[363798087,1748875834742,-430.0,0.00016551,2]
[363798089,1748875834751,-430.0,0.00016551,2]
[363798091,1748875834761,-228.92986368,0.00016551,2]
[363798092,1748875834770,-430.0,0.00016551,2]
[363798095,1748875834780,-430.0,0.00016551,2]
[363798097,1748875834791,-430.0,0.00016551,2]
[363798099,1748875834800,-430.0,0.00016551,2]
[363798101,1748875834811,-430.0,0.00016551,2]
[363798103,1748875834821,-430.0,0.00016551,2]
[363798105,1748875834833,-430.0,0.00016551,2]
[363798107,1748875834843,-430.0,0.00016551,2]
[363798109,1748875834852,-427.50915335,0.00016551,2]
[363798111,1748875834863,-430.0,0.00016551,2]
[363798113,1748875834876,-430.0,0.00016551,2]
[363798115,1748875834886,-430.0,0.00016551,2]
[363798117,1748875834896,-878.66,0.00016551,2]
[363798119,1748875834905,-430.0,0.00016551,2]
[363798121,1748875834915,-430.0,0.00016551,2]
[363798123,1748875834925,-430.0,0.00016551,2]
[363798125,1748875834935,-430.0,0.00016551,2]
[363798127,1748875834944,-430.0,0.00016551,2]
[363798129,1748875834954,-430.0,0.00016551,2]
[363798131,1748875834965,-430.0,0.00016551,2]
[363798133,1748875834977,-430.0,0.00016551,2]
[363798135,1748875834987,-430.0,0.00016551,2]
[363798137,1748875834997,-430.0,0.00016551,2]
[363798139,1748875835007,-430.0,0.00016551,2]
[363798141,1748875835017,-430.0,0.00016551,2]
[363798143,1748875835027,-430.0,0.00016551,2]
[363798145,1748875835038,-458.36642884,0.00016551,2]
[363798147,1748875835047,-430.0,0.00016551,2]
[363798149,1748875835057,-430.0,0.00016551,2]
[363798151,1748875835067,-430.0,0.00016551,2]
[363798153,1748875835076,-430.0,0.00016551,2]
[363798155,1748875835086,-430.0,0.00016551,2]
[363798157,1748875835096,-430.0,0.00016551,2]
[363798159,1748875835107,-2068.77,0.00016551,2]
[363798161,1748875835117,-430.0,0.00016551,2]
[363798163,1748875835126,-389.36437566,0.00016551,2]
[363798165,1748875835137,-873.36,0.00016551,2]
[363798167,1748875835147,-430.0,0.00016551,2]
[363798169,1748875835156,-322.92389835,0.00016551,2]
[363798171,1748875835167,-430.0,0.00016551,2]
[363798173,1748875835178,-430.0,0.00016551,2]
[363798175,1748875835189,-430.0,0.00016551,2]
[363798177,1748875835198,-430.0,0.00016551,2]
[363798179,1748875835208,-430.0,0.00016551,2]
[363798181,1748875835218,-430.0,0.00016551,2]
[363798183,1748875835230,-430.0,0.00016551,2]
[363798185,1748875835240,-430.0,0.00016551,2]
[363798187,1748875835250,-430.0,0.00016551,2]
[363798190,1748875835260,-430.0,0.00016551,2]
[363798192,1748875835270,-432.40168516,0.00016551,2]
[363798193,1748875835279,-567.85525176,0.00016551,2]
[363798195,1748875835289,-430.0,0.00016551,2]
[363798197,1748875835299,-476.02,0.00016551,2]
[363798200,1748875835309,-430.0,0.00016551,2]
[363798201,1748875835319,-430.0,0.00016551,2]
[363798203,1748875835330,-430.0,0.00016551,2]
[363798205,1748875835340,-430.0,0.00016551,2]
[363798207,1748875835350,-430.0,0.00016551,2]
[363798209,1748875835360,-430.0,0.00016551,2]
[363798211,1748875835370,-430.0,0.00016551,2]
[363798213,1748875835378,-430.0,0.00016551,2]
[363798215,1748875835389,-430.0,0.00016551,2]
[363798217,1748875835403,-430.0,0.00016551,2]
[363798219,1748875835412,-430.0,0.00016551,2]
[363798221,1748875835421,-430.0,0.00016551,2]
[363798223,1748875835431,-430.0,0.00016551,2]
[363798225,1748875835440,-430.0,0.00016551,2]
[363798227,1748875835450,-565.92,0.00016551,2]
[363798229,1748875835459,-430.0,0.00016551,2]
[363798231,1748875835470,-733.15,0.00016551,2]
[363798232,1748875835481,-430.0,0.00016551,2]
[363798234,1748875835490,-430.0,0.00016551,2]
[363798236,1748875835499,-430.0,0.00016551,2]
[363798238,1748875835509,-430.0,0.00016551,2]
[363798240,1748875835517,-430.0,0.00016551,2]
[363798242,1748875835526,-430.0,0.00016551,2]
[363798244,1748875835536,-430.0,0.00016551,2]
[363798246,1748875835546,-1526.4,0.00016551,2]
[363798248,1748875835555,-430.0,0.00016551,2]
[363798250,1748875835564,-430.0,0.00016551,2]
[363798252,1748875835574,-654.67,0.00016551,2]
[363798254,1748875835582,-430.0,0.00016551,2]
[363798256,1748875835591,-430.0,0.00016551,2]
[363798258,1748875835601,-340.0,0.00016551,2]
[363798260,1748875835610,-430.0,0.00016551,2]
[363798262,1748875835619,-430.0,0.00016551,2]
[363798264,1748875835628,-577.00179121,0.00016551,2]
[363798266,1748875835637,-430.0,0.00016551,2]
[363798268,1748875835647,-430.0,0.00016551,2]
[363798270,1748875835656,-3041.88,0.00016551,2]
[363798272,1748875835666,-430.0,0.00016551,2]
[363798275,1748875835676,-501.42,0.00016551,2]
[363798277,1748875835687,-430.0,0.00016551,2]
[363798279,1748875835697,-430.0,0.00016552,2]
[363798281,1748875835707,-1091.3,0.00016552,2]
[363798283,1748875835717,-430.0,0.00016552,2]
[363798285,1748875835728,-1175.57,0.00016552,2]
[363798287,1748875835738,-430.0,0.00016552,2]
[363798289,1748875835748,-1163.93,0.00016552,2]